bitfinex/quotes_SOLUSD_20220218
["timestamp","ask_amount","ask_price","bid_price","bid_amount"]
[1645200254724,110.1,90.585,90.44,6.0]
[1645200254921,5.524,90.586,90.423,5.524]
[1645200254922,176.37,90.583,90.423,5.524]
[1645200255123,110.1,90.569,90.42,12.82]
[1645200255323,110.1,90.567,90.42,12.82]
[1645200255523,110.1,90.559,90.422,50.76851425]
[1645200255725,110.1,90.557,90.422,50.76851425]
[1645200255924,110.1,90.549,90.422,50.76851425]
[1645200256124,110.1,90.547,90.422,50.76851425]
[1645200256322,110.1,90.545,90.423,110.1]
[1645200256725,2.6293831,90.56,90.431,110.1]
[1645200256924,5.525,90.578,90.44,12.82]
[1645200257222,6.0,90.58,90.442,110.1]
[1645200257424,6.0,90.58,90.444,110.1]
[1645200257625,110.1,90.571,90.45,16.5849]
[1645200257826,110.1,90.571,90.451,0.25]
[1645200258026,369.94504136,90.572,90.451,110.35]
[1645200258225,369.94504136,90.572,90.452,2.6293831]
[1645200258426,369.94504136,90.572,90.453,0.25]
[1645200258628,2.6293831,90.571,90.453,0.25]
[1645200258827,2.6293831,90.571,90.42,5.39]
[1645200258828,112.7293831,90.571,90.44,22.1122]
[1645200259027,110.1,90.569,90.441,50.81054038]
[1645200259231,54.46,90.564,90.441,50.81054038]
[1645200259431,110.1,90.549,90.441,50.81054038]
[1645200259734,0.25,90.548,90.441,50.81054038]
[1645200259929,2.8793831,90.548,90.441,50.81054038]
[1645200260333,0.25,90.548,90.441,50.81054038]
[1645200261628,0.25,90.548,90.44,16.5882]
[1645200261629,66.52,90.548,90.44,16.5882]
[1645200261833,110.1,90.543,90.42,16.5918]
[1645200262028,110.1,90.529,90.42,16.5918]
[1645200262229,12.82,90.53,90.42,16.5918]
[1645200262230,110.1,90.527,90.42,16.5918]
[1645200262438,66.27,90.524,90.42,16.5918]
[1645200262636,176.37,90.519,90.412,45.26265087]
[1645200262837,34.9546,90.52,90.36,12.82]
[1645200262838,176.37,90.517,90.36,12.82]
[1645200263035,54.46,90.514,90.364,10.87546505]
[1645200263231,18.36,90.52,90.364,10.87546505]
[1645200263232,110.1,90.499,90.364,10.87546505]
[1645200263431,110.1,90.497,90.364,10.87546505]
[1645200263633,110.1,90.495,90.364,10.87546505]
[1645200263833,110.1,90.489,90.38,16.5996]
[1645200264032,0.25,90.488,90.38,16.5996]
[1645200264635,110.1,90.489,90.381,112.7293831]
[1645200264835,16.5992,90.5,90.381,112.7293831]
[1645200265040,110.1,90.499,90.401,52.89100242]
[1645200265233,110.1,90.499,90.4,16.5958]
[1645200265234,95.1,90.499,90.4,16.5958]
[1645200265434,95.1,90.499,90.382,2.6293831]
[1645200265636,66.27,90.496,90.363,18.18150663]
[1645200265834,66.27,90.49,90.362,2.6293831]
[1645200266134,110.1,90.491,90.371,110.1]
[1645200266335,0.25,90.49,90.371,159.75578669]
[1645200266534,0.25,90.49,90.372,2.6293831]
[1645200266735,0.25,90.49,90.373,110.1]
[1645200266936,0.25,90.49,90.374,0.25]
[1645200267136,110.35,90.49,90.374,2.8793831]
[1645200267366,126.9499,90.49,90.386,54.1863264]
[1645200267542,126.9499,90.49,90.371,49.65578669]
[1645200267543,110.1,90.488,90.364,2.6293831]
[1645200267739,5.0,90.47,90.3,0.39]
[1645200267940,176.62,90.469,90.314,2.6293831]
[1645200268139,176.62,90.469,90.291,24.6642]
[1645200268140,176.37,90.449,90.298,18.18150663]
[1645200268340,5.531,90.468,90.33,16.6097]
[1645200268341,16.6105,90.43,90.33,16.6097]
[1645200268539,16.6105,90.43,90.331,54.08614199]
[1645200268540,110.35,90.429,90.331,54.08614199]
[1645200268743,0.25,90.429,90.332,110.1]
[1645200268943,0.25,90.429,90.331,54.08614199]
[1645200269447,110.1,90.419,90.31,16.6142]
[1645200269643,115.633,90.419,90.31,16.6142]
[1645200269844,0.25,90.418,90.31,16.6142]
[1645200270343,0.25,90.418,90.311,39.68400551]
[1645200270544,0.25,90.418,90.32,16.6122]
[1645200270943,66.27,90.436,90.32,16.6122]
[1645200271145,110.1,90.433,90.32,16.6122]
[1645200271344,110.1,90.427,90.32,16.6122]
[1645200271544,54.46,90.428,90.32,16.6122]
[1645200271545,0.25,90.437,90.32,16.6122]
[1645200271945,2.6293831,90.436,90.32,16.6122]
[1645200272249,16.6125,90.42,90.311,39.68400551]
[1645200272444,0.25,90.419,90.311,39.68400551]
[1645200272745,16.6125,90.42,90.311,39.68400551]
[1645200273046,10.0,91.143,90.311,39.68400551]
[1645200273047,5.533,90.46,90.312,131.16088973]
[1645200273345,16.4398,90.502,90.312,131.16088973]
[1645200273346,16.6018,90.48,90.321,110.1]
[1645200273546,23.0539,90.469,90.323,176.37]
[1645200273746,23.0539,90.469,90.341,52.09962169]
[1645200273944,23.0539,90.469,90.35,5.39]
[1645200274142,48.428,90.519,90.351,115.88]
[1645200274343,48.428,90.519,90.351,126.75546505]
[1645200274549,2.6293831,90.505,90.361,48.72246465]
[1645200274743,66.27,90.503,90.361,48.72246465]
[1645200274943,66.27,90.499,90.351,10.87546505]
[1645200275144,164.56,90.488,90.333,10.87546505]
[1645200275344,176.37,90.459,90.315,10.87546505]
[1645200275544,5.54,90.46,90.315,10.87546505]
[1645200275545,16.6094,90.43,90.32,16.6118]
[1645200275745,0.25,90.429,90.32,16.6118]
[1645200276044,2.8793831,90.429,90.322,41.21747569]
[1645200276244,0.25,90.429,90.322,41.21747569]
[1645200276446,0.25,90.429,90.323,2.6293831]
[1645200276845,2.6293831,90.429,90.305,2.6293831]
[1645200277048,110.1,90.419,90.305,2.6293831]
[1645200277244,6.0,90.42,90.295,10.87546505]
[1645200277445,0.25,90.419,90.293,73.9672]
[1645200277648,8.4113831,90.419,90.293,73.9672]
[1645200277846,2.8793831,90.419,90.293,73.9672]
[1645200278046,110.1,90.399,90.293,73.9672]
[1645200278248,0.25,90.398,90.293,73.9672]
[1645200279049,16.6177,90.38,90.3,16.6168]
[1645200279249,16.6177,90.38,90.27,55.391]
[1645200279449,110.1,90.379,90.27,55.391]
[1645200279651,0.25,90.378,90.243,5.534]
[1645200279853,0.25,90.378,90.231,5.534]
[1645200280052,0.25,90.378,90.292,50.53741705]
[1645200280251,0.25,90.378,90.306,50.93131093]
[1645200280451,110.1,90.369,90.306,50.93131093]
[1645200280650,0.25,90.368,90.261,110.1]
[1645200281052,0.25,90.368,90.26,16.62]
[1645200281260,0.25,90.368,90.257,73.1039]
[1645200281453,110.35,90.368,90.257,73.1039]
[1645200281651,110.35,90.368,90.295,42.82981407]
[1645200281852,126.7211,90.36,90.295,42.82981407]
[1645200282253,0.25,90.359,90.295,42.82981407]
[1645200282470,0.25,90.359,90.267,110.1]
[1645200282471,0.25,90.359,90.309,46.55839052]
[1645200283179,0.25,90.359,90.257,73.1039]
[1645200283372,5.534,90.399,90.257,73.1039]
[1645200283373,6.0,90.38,90.257,183.2039]
[1645200283573,0.25,90.379,90.257,183.2039]
[1645200283774,110.35,90.379,90.257,183.2039]
[1645200283976,110.1,90.359,90.257,73.1039]
[1645200284176,110.1,90.357,90.262,42.53807115]
[1645200284478,0.25,90.356,90.29,50.73690577]
[1645200284677,0.25,90.356,90.219,110.1]
[1645200284878,0.25,90.356,90.218,22.4386]
[1645200284879,0.25,90.356,90.221,110.1]
[1645200285079,0.25,90.356,90.25,16.6219]
[1645200285276,0.25,90.356,90.241,110.1]
[1645200285478,0.25,90.356,90.218,16.9046]
[1645200285678,0.25,90.358,90.278,47.35209962]
[1645200285876,66.27,90.356,90.219,5.534]
[1645200286177,126.7221,90.35,90.218,16.9046]
[1645200286377,0.25,90.349,90.219,5.534]
[1645200286676,0.25,90.349,90.305,47.93993522]
[1645200286878,0.25,90.349,90.222,110.1]
[1645200287077,0.25,90.349,90.218,16.9046]
[1645200287078,0.25,90.349,90.224,110.1]
[1645200287278,55.3926,90.4,90.281,110.1]
[1645200287480,61.3926,90.4,90.25,110.1]
[1645200287678,61.3926,90.4,90.252,110.1]
[1645200287878,61.3926,90.4,90.31,42.63941158]
[1645200288079,6.0,90.4,90.31,42.63941158]
[1645200288279,6.0,90.4,90.311,110.1]
[1645200288478,22.8872,90.409,90.311,110.1]
[1645200288680,5.533,90.458,90.322,0.25]
[1645200288879,6.0,90.44,90.312,5.532]
[1645200289083,2.6293831,90.436,90.31,42.63941158]
[1645200289281,5.532,90.435,90.311,110.1]
[1645200289482,110.1,90.437,90.31,42.63941158]
[1645200289880,2.6293831,90.436,90.31,42.63941158]
[1645200290082,110.1,90.429,90.31,42.63941158]
[1645200290280,110.1,90.425,90.31,42.63941158]
[1645200290679,110.1,90.423,90.31,42.63941158]
[1645200290880,110.1,90.421,90.31,42.63941158]
[1645200291083,110.1,90.419,90.31,42.63941158]
[1645200291284,66.27,90.416,90.29,131.9021]
[1645200291492,176.37,90.399,90.247,5.532]
[1645200291683,176.37,90.397,90.216,83.7696]
[1645200291882,176.37,90.395,90.231,5.533]
[1645200292082,176.37,90.395,90.216,78.2366]
[1645200292083,0.25,90.394,90.217,5.533]
[1645200292283,0.25,90.394,90.25,110.1]
[1645200292482,110.1,90.392,90.25,110.1]
[1645200292689,66.27,90.389,90.25,110.1]
[1645200292883,110.1,90.379,90.26,16.6219]
[1645200293084,110.1,90.379,90.25,110.1]
[1645200293285,0.25,90.378,90.322,40.40417951]
[1645200293484,6.0,90.38,90.322,40.40417951]
[1645200293485,110.1,90.38,90.322,40.40417951]
[1645200293683,116.1,90.38,90.253,110.1]
[1645200294083,110.1,90.38,90.253,110.1]
[1645200294284,110.1,90.369,90.28,16.6197]
[1645200294687,0.25,90.368,90.28,16.6197]
[1645200295188,0.25,90.368,90.281,110.1]
[1645200295384,16.6176,90.38,90.3,16.6153]
[1645200295589,0.25,90.379,90.3,16.6153]
[1645200295787,0.25,90.379,90.301,47.66067468]
[1645200296385,110.35,90.379,90.301,47.66067468]
[1645200296587,0.25,90.379,90.301,47.66067468]
[1645200296787,16.6177,90.38,90.301,47.66067468]
[1645200297386,126.7177,90.38,90.301,47.66067468]
[1645200297789,6.0,90.379,90.301,47.66067468]
[1645200298287,0.25,90.378,90.301,47.66067468]
[1645200298488,0.25,90.378,90.31,16.6154]
[1645200298689,0.25,90.378,90.31,15.6154]
[1645200298888,6.0,90.379,90.31,15.6154]
[1645200299190,5.534,90.412,90.31,15.6154]
[1645200299394,6.0,90.411,90.311,110.1]
[1645200299591,55.3759,90.42,90.331,47.13285003]
[1645200299792,6.0,90.418,90.331,47.13285003]
[1645200300194,16.6119,90.41,90.331,47.13285003]
[1645200300595,6.0,90.418,90.34,16.6102]
[1645200300808,6.0,90.418,90.341,110.1]
[1645200301009,6.0,90.418,90.331,47.13285003]
[1645200301226,6.0,90.417,90.332,0.25]
[1645200301429,110.1,90.438,90.332,0.25]
[1645200301626,6.0,90.437,90.332,0.25]
[1645200302027,126.708,90.43,90.36,16.6065]
[1645200302426,126.708,90.43,90.307,110.1]
[1645200302627,110.1,90.428,90.257,5.532]
[1645200302825,110.1,90.426,90.284,16.6719]
[1645200303028,110.1,90.424,90.284,16.6719]
[1645200303226,110.1,90.422,90.289,51.80706552]
[1645200303425,5.533,90.423,90.303,40.60461939]
[1645200303426,110.1,90.389,90.303,40.60461939]
[1645200303625,0.25,90.388,90.303,40.60461939]
[1645200303828,110.1,90.386,90.25,2.6293831]
[1645200304025,110.1,90.384,90.25,2.6293831]
[1645200304226,110.1,90.382,90.25,2.6293831]
[1645200304428,110.1,90.369,90.27,16.6217]
[1645200304627,0.25,90.368,90.27,16.6217]
[1645200304827,0.25,90.368,90.271,43.26747449]
[1645200305630,0.25,90.368,90.28,16.6209]
[1645200305828,0.25,90.38,90.28,16.6209]
[1645200306029,1.49939554,90.385,90.28,16.6209]
[1645200306229,1.49939554,90.388,90.281,2.8793831]
[1645200306428,77.5169,90.42,90.281,21.25834528]
[1645200306429,1.49939554,90.395,90.281,21.25834528]
[1645200306629,1.49939554,90.392,90.282,112.7293831]
[1645200306829,110.1,90.39,90.283,0.25]
[1645200307031,1.49939554,90.39,90.283,2.6293831]
[1645200307230,16.6155,90.38,90.283,2.6293831]
[1645200307431,1.49939554,90.379,90.273,2.6293831]
[1645200307631,1.49939554,90.379,90.271,43.26747449]
[1645200307834,176.37,90.377,90.271,43.26747449]
[1645200308033,1.49939554,90.374,90.243,2.6293831]
[1645200308235,2.6293831,90.379,90.23,55.4175]
[1645200308236,176.37,90.359,90.23,55.4175]
[1645200308431,176.37,90.359,90.19,35.3209]
[1645200308432,1.49939554,90.355,90.213,214.1293831]
[1645200308635,110.1,90.338,90.217,110.1]
[1645200308831,5.54,90.339,90.217,110.1]
[1645200308832,1.49939554,90.332,90.217,110.1]
[1645200309032,110.1,90.33,90.218,49.42036992]
[1645200309332,16.6296,90.32,90.22,16.6308]
[1645200309531,115.888,90.319,90.218,49.42036992]
[1645200310332,110.35,90.319,90.218,49.42036992]
[1645200310535,16.6326,90.3,90.22,16.6305]
[1645200310736,0.25,90.299,90.22,16.6305]
[1645200310934,0.25,90.299,90.221,18.37896218]
[1645200311331,110.1,90.318,90.221,18.37896218]
[1645200311332,110.05,90.318,90.222,0.25]
[1645200311536,176.37,90.34,90.222,18.34285107]
[1645200311734,16.6293,90.31,90.223,18.34285107]
[1645200311932,1.49939554,90.341,90.224,110.1]
[1645200312134,1.49939554,90.35,90.226,110.1]
[1645200312332,1.49939554,90.359,90.228,110.1]
[1645200312534,110.1,90.355,90.228,110.1]
[1645200312734,110.1,90.355,90.227,20.97223417]
[1645200312735,110.1,90.355,90.23,110.1]
[1645200313133,115.637,90.355,90.23,110.1]
[1645200313331,66.27,90.373,90.232,110.1]
[1645200313332,126.7234,90.35,90.232,110.1]
[1645200313636,6.0,90.349,90.234,150.60520405]
[1645200313832,6.0,90.349,90.236,110.1]
[1645200314031,1.49939554,90.369,90.238,110.1]
[1645200314235,6.0,90.355,90.24,110.1]
[1645200314534,6.0,90.354,90.261,110.1]
[1645200314733,6.0,90.353,90.263,110.1]
[1645200314934,1.49939554,90.378,90.264,0.25]
[1645200315133,110.1,90.376,90.264,0.25]
[1645200315333,16.6176,90.38,90.265,110.1]
[1645200315534,1.49939554,90.391,90.291,156.46893275]
[1645200315734,1.49939554,90.403,90.293,110.1]
[1645200315934,111.59939554,90.402,90.267,115.634]
[1645200316135,110.1,90.4,90.269,110.1]
[1645200316432,110.1,90.4,90.268,6.0]
[1645200316433,1.49939554,90.399,90.271,110.1]
[1645200316632,1.49939554,90.399,90.273,110.1]
[1645200316633,6.0,90.398,90.273,110.1]
[1645200316832,6.0,90.398,90.275,161.6741992]
[1645200317032,1.49939554,90.403,90.277,110.1]
[1645200317234,16.6139,90.4,90.29,16.6137]
[1645200317431,126.7139,90.4,90.292,39.04687765]
[1645200317632,126.7139,90.4,90.293,0.25]
[1645200318032,126.7139,90.4,90.293,110.35]
[1645200318233,126.7139,90.4,90.293,0.25]
[1645200318432,16.6139,90.4,90.3,16.6133]
[1645200318633,1.49939554,90.41,90.302,110.1]
[1645200318837,1.49939554,90.41,90.304,110.1]
[1645200319038,1.49939554,90.411,90.307,154.24273592]
[1645200319233,1.49939554,90.412,90.307,44.14273592]
[1645200319435,110.1,90.408,90.308,6.0]
[1645200319833,110.1,90.406,90.321,42.37906523]
[1645200320436,0.25,90.405,90.321,42.37906523]
[1645200320636,0.25,90.405,90.3,55.3662]
[1645200320839,1.49939554,90.402,90.287,110.1]
[1645200321036,1.49939554,90.395,90.273,2.6293831]
[1645200321236,1.49939554,90.388,90.273,2.6293831]
[1645200321546,1.49939554,90.374,90.263,44.28584601]
[1645200321738,110.1,90.372,90.263,44.28584601]
[1645200321937,164.56,90.372,90.263,44.28584601]
[1645200322336,126.7216,90.36,90.263,44.28584601]
[1645200323438,126.7216,90.36,90.264,0.25]
[1645200323638,126.7216,90.36,90.27,16.6202]
[1645200324240,110.1,90.37,90.27,16.6202]
[1645200324440,55.4186,90.36,90.265,2.6293831]
[1645200324640,176.37,90.349,90.179,73.6204]
[1645200324840,66.27,90.318,90.16,2.0]
[1645200325040,66.27,90.31,90.16,2.0]
[1645200325241,110.1,90.301,90.16,2.0]
[1645200325444,110.1,90.289,90.207,50.86333919]
[1645200325642,115.64,90.289,90.16,2.0]
[1645200325840,66.27,90.286,90.16,2.0]
[1645200326040,176.37,90.283,90.16,2.0]
[1645200326841,176.37,90.281,90.16,2.0]
[1645200327041,5.54,90.282,90.16,2.0]
[1645200327042,110.1,90.269,90.16,2.0]
[1645200327645,66.27,90.266,90.16,2.0]
[1645200327843,66.27,90.26,90.16,2.0]
[1645200328043,0.54,90.249,90.16,2.0]
[1645200328243,8.6293831,90.265,90.16,2.0]
[1645200328244,71.81,90.239,90.16,2.0]
[1645200328444,176.37,90.228,90.16,2.0]
[1645200328644,5.54,90.229,90.16,2.0]
[1645200328645,5.54,90.229,90.161,44.29095086]
[1645200328845,2.6293831,90.238,90.161,44.29095086]
[1645200329043,5.54,90.269,90.161,44.29095086]
[1645200329044,2.6293831,90.248,90.161,44.29095086]
[1645200329247,6.0,90.251,90.16,2.0]
[1645200329445,5.54,90.239,90.16,2.0]
[1645200329644,6.0,90.251,90.16,2.0]
[1645200329645,5.543,90.238,90.16,2.0]
[1645200329844,110.1,90.236,90.16,2.0]
[1645200330051,110.1,90.234,90.16,2.0]
[1645200330245,110.1,90.234,90.161,41.68741005]
[1645200330446,6.0,90.251,90.161,41.68741005]
[1645200331047,5.542,90.25,90.161,41.68741005]
[1645200331246,5.54,90.229,90.16,2.0]
[1645200331448,5.543,90.228,90.16,2.0]
[1645200331753,6.54,90.249,90.16,2.0]
[1645200331754,110.1,90.238,90.16,2.0]
[1645200331947,73.00889554,90.264,90.16,2.0]
[1645200331948,2.6293831,90.261,90.16,2.0]
[1645200332147,2.6293831,90.261,90.161,42.73037595]
[1645200332547,5.542,90.26,90.161,42.73037595]
[1645200332747,110.1,90.239,90.161,42.73037595]
[1645200332946,16.6463,90.24,90.161,42.73037595]
[1645200333146,6.25,90.239,90.161,42.73037595]
[1645200333749,6.0,90.239,90.161,42.73037595]
[1645200333949,2.6293831,90.274,90.162,2.8793831]
[1645200334148,5.543,90.29,90.162,2.8793831]
[1645200334351,5.542,90.291,90.163,2.6293831]
[1645200334550,5.542,90.291,90.161,42.73037595]
[1645200334752,5.54,90.289,90.161,42.73037595]
[1645200334954,181.6095,90.264,90.161,42.73037595]
[1645200335152,110.1,90.262,90.161,42.73037595]
[1645200335351,126.7425,90.26,90.161,42.73037595]
[1645200335655,5.542,90.259,90.161,42.73037595]
[1645200335951,71.5095,90.264,90.161,42.73037595]
[1645200336156,23.725,90.264,90.161,42.73037595]
[1645200336351,111.6956,90.307,90.161,42.73037595]
[1645200336352,26.0217831,90.292,90.161,42.73037595]
[1645200336553,5.54,90.279,90.17,16.6373]
[1645200336753,5.541,90.278,90.161,42.73037595]
[1645200336953,110.1,90.277,90.161,42.73037595]
[1645200337152,110.1,90.268,90.161,42.73037595]
[1645200337353,110.1,90.264,90.161,42.73037595]
[1645200337554,110.1,90.239,90.161,42.73037595]
[1645200337755,110.1,90.228,90.16,2.0]
[1645200337954,0.54,90.219,90.16,2.0]
[1645200338154,110.1,90.216,90.16,2.0]
[1645200338353,110.1,90.214,90.16,2.0]
[1645200338554,16.6531,90.21,90.16,2.0]
[1645200338753,5.543,90.218,90.161,50.35962765]
[1645200338952,5.543,90.218,90.16,2.0]
[1645200338953,11.083,90.219,90.06,55.5122]
[1645200339158,5.54,90.199,90.048,74.4706]
[1645200339354,5.545,90.198,90.048,74.4706]
[1645200339562,8.1743831,90.198,90.048,74.4706]
[1645200339865,110.1,90.189,90.109,45.64950541]
[1645200340055,16.6611,90.18,90.109,45.64950541]
[1645200340255,164.56,90.179,90.048,74.4706]
[1645200340456,170.106,90.179,90.082,73.48447096]
[1645200340656,232.43449625,90.179,90.082,45.53606139]
[1645200340856,28.49412632,90.178,90.043,8.77896139]
[1645200341060,28.49412632,90.178,90.043,5.27896139]
[1645200341061,16.6631,90.16,90.043,5.27896139]
[1645200341259,176.37,90.149,90.044,53.29335817]
[1645200341459,176.37,90.139,90.043,5.27896139]
[1645200342165,176.37,90.135,90.043,6.139e-05]
[1645200342376,110.1,90.129,90.011,4.54806139]
[1645200342559,16.67,90.13,90.011,4.54806139]
[1645200342560,176.37,90.125,90.012,52.95707779]
[1645200342759,29.49,90.13,90.012,52.95707779]
[1645200342760,110.1,90.117,90.013,5.551]
[1645200342959,176.37,90.113,90.012,52.95707779]
[1645200343160,110.1,90.109,90.012,52.95707779]
[1645200343561,0.25,90.108,90.012,52.95707779]
[1645200343764,0.25,90.108,90.012,52.45707779]
[1645200343962,0.25,90.108,90.01,1.026]
[1645200343963,110.1,90.107,90.0,56.105]
[1645200344164,115.651,90.107,90.0,56.105]
[1645200344362,127.98226598,90.107,90.0,56.105]
[1645200344562,115.651,90.107,90.0,56.105]
[1645200344764,2.6293831,90.106,90.0,56.105]
[1645200344963,110.1,90.099,90.0,72.7983]
[1645200345165,66.27,90.09,90.001,54.23390783]
[1645200345378,110.1,90.085,90.001,54.23390783]
[1645200345762,110.1,90.109,90.001,54.23390783]
[1645200346166,54.46,90.11,90.001,54.23390783]
[1645200346368,12.82,90.14,90.002,5.551]
[1645200346564,24.4501,90.149,90.002,22.17298415]
[1645200346764,24.4501,90.149,90.01,5.0]
[1645200346964,5.55,90.196,90.02,5.0]
[1645200347169,11.57082787,90.212,90.011,9.89729]
[1645200347170,11.57082787,90.212,90.071,40.74368224]
[1645200347371,12.82,90.26,90.072,10.14035]
[1645200347571,12.82,90.26,90.08,21.6508]
[1645200347773,12.82,90.26,90.111,45.82732551]
[1645200347968,110.1,90.259,90.112,5.793]
[1645200348170,110.1,90.257,90.081,30.21072625]
[1645200348370,110.64,90.249,90.07,55.4958]
[1645200348568,110.64,90.249,90.026,72.4832]
[1645200348569,176.37,90.237,90.071,5.545]
[1645200348772,176.37,90.229,90.06,16.6539]
[1645200348971,66.27,90.219,90.06,16.6539]
[1645200349169,176.37,90.217,90.061,50.67504648]
[1645200349370,0.54,90.199,90.061,50.67504648]
[1645200349579,0.54,90.159,90.061,50.67504648]
[1645200349773,181.91,90.149,90.061,50.67504648]
[1645200349990,181.37,90.139,90.061,50.67504648]
[1645200350185,110.1,90.133,90.061,50.67504648]
[1645200350489,5.549,90.144,90.061,50.67504648]
[1645200350693,2.6293831,90.148,90.061,50.67504648]
[1645200350887,12.82,90.14,90.061,50.67504648]
[1645200351087,12.82,90.13,90.061,50.67504648]
[1645200351288,66.27,90.128,90.0,56.105]
[1645200351489,0.54,90.099,90.0,56.105]
[1645200351685,0.54,90.099,90.0,9.184]
[1645200351686,0.54,90.089,90.0,9.184]
[1645200351885,0.54,90.079,90.0,9.184]
[1645200352084,176.37,90.077,90.0,9.184]
[1645200352287,110.1,90.069,90.001,41.19503613]
[1645200352987,5.553,90.079,90.001,41.19503613]
[1645200353187,0.25,90.089,90.001,41.19503613]
[1645200353788,5.551,90.113,90.001,41.19503613]
[1645200353989,110.1,90.115,90.001,41.19503613]
[1645200354191,2.6293831,90.144,90.002,32.30580537]
[1645200354389,71.2379,90.149,90.002,32.30580537]
[1645200354593,71.7779,90.149,90.003,23.87542227]
[1645200354790,12.82,90.14,90.001,41.19503613]
[1645200354992,110.1,90.138,90.001,41.19503613]
[1645200355189,110.1,90.136,90.001,41.19503613]
[1645200355390,66.27,90.135,90.001,41.19503613]
[1645200355589,176.37,90.13,90.001,41.19503613]
[1645200355795,110.1,90.128,90.001,41.19503613]
[1645200355990,110.1,90.128,90.002,0.25]
[1645200356192,110.1,90.128,90.002,8.8793831]
[1645200356390,115.651,90.128,90.001,41.19503613]
[1645200356589,66.27,90.121,90.001,41.19503613]
[1645200356789,5.551,90.128,90.001,41.19503613]
[1645200356790,181.921,90.12,90.001,41.19503613]
[1645200356992,115.651,90.12,90.001,41.19503613]
[1645200357195,71.2379,90.149,90.002,2.6293831]
[1645200357390,71.2379,90.149,90.003,6.0]
[1645200357592,23.1445,90.149,90.003,25.5637556]
[1645200357791,3.01133589,90.212,90.003,25.5637556]
[1645200357792,455.37172513,90.189,90.05,5.0]
[1645200357990,455.37172513,90.189,90.06,5.0]
[1645200358190,1.49939554,90.224,90.062,110.1]
[1645200358390,1.49939554,90.224,90.07,5.0]
[1645200358590,1.49939554,90.238,90.081,110.1]
[1645200358789,1.49939554,90.238,90.071,54.05731142]
[1645200358790,1.49939554,90.249,90.1,5.0]
[1645200358991,1.49939554,90.253,90.111,110.1]
[1645200359189,1.49939554,90.259,90.12,5.0]
[1645200359390,6.0,90.258,90.122,40.3573674]
[1645200359593,0.00019554,90.269,90.123,6.25]
[1645200359792,17.43199751,90.278,90.123,6.0]
[1645200359990,5.543,90.277,90.124,0.25]
[1645200360193,5.54,90.289,90.141,110.1]
[1645200360194,5.0,90.289,90.141,110.1]
[1645200360391,5.542,90.299,90.143,52.53150561]
[1645200360592,3.01133589,90.317,90.144,11.791]
[1645200360792,3.01133589,90.317,90.145,4.34083]
[1645200360993,3.01133589,90.321,90.16,5.0]
[1645200361191,3.01133589,90.342,90.18,5.0]
[1645200361392,3.01133589,90.342,90.161,63.77989071]
[1645200361393,3.01133589,90.336,90.22,16.6261]
[1645200361596,3.01133589,90.334,90.221,47.47950152]
[1645200361792,110.1,90.332,90.221,47.47950152]
[1645200361993,17.82243435,90.331,90.221,47.47950152]
[1645200362191,114.6,90.326,90.221,47.47950152]